Cogmind - Beta 13 @@@ ROGUE MODE // 2024.04.02 @ 00:20:09 Player: lazy_engineer Result: Destroyed by Y-45 Defender with Beam Rifle Performance ------------- Evolutions (1) 500 Regions Visited (3) 600 Robots Destroyed (28) 140 Value Destroyed (651) 651 Prototype IDs (5) 100 Alien Tech Used (0) 0 Bonus (-309) -309 TOTAL SCORE: 1682 Bonus ------- High Alert Combat Kills 27 Friendly Fire -336 Cogmind --------- Core Integrity 0/400 Matter 44/300 Energy 250/250 System Corruption 3% Temperature Cool (9) Movement Flying (680) Ox8 Location -9/Storage Parts ------- > --- POWER (1) -------- Ion Engine > --- PROPULSION (3) --- Flight Unit > --- UTILITY (3) ------ Medium Storage Unit Drone Bay (2/2) Drone Bay (0/2) > --- WEAPON (2) ------- Advanced Beam Cannon Heavy Assault Rifle > --- INVENTORY (10) --- Small Storage Unit Drone Bay (0/2) Drone Bay (0/2) Drone Bay (0/2) Drone Bay (0/2) Guided EMP Blaster Peak State ------------ > --- POWER ------------ Light Ion Engine > --- PROPULSION ------- Improved Flight Unit Improved Flight Unit Improved Flight Unit > --- UTILITY ---------- Small Storage Unit Weight Redist. System Terrain Scanner > --- WEAPON ----------- Guided EMP Blaster > --- INVENTORY -------- Flight Unit Medium Storage Unit Medium Armor Plating Medium Armor Plating Advanced Beam Cannon Mini Grenade Launcher [Rating: 27] Favorites ----------- Power Light Ion Engine Engine Light Ion Engine Power Core Light Nuclear Core Propulsion Improved Flight Unit Wheel Wheel Flight Unit Improved Flight Unit Utility Small Storage Unit Device Drone Bay Storage Small Storage Unit Processor Signal Interpreter Weapon Advanced Beam Cannon Energy Gun Particle Gun Energy Cannon Advanced Beam Cannon Ballistic Gun Light Assault Rifle Launcher Mini Grenade Launcher Special Weapon Plasma Cutter Build | -11 -10 -9 -9 ------- Run | Yrd Mat Mat Sto Slots Evolved 2 | . . 2 . Power . | . . . . Propulsion 1 | . . 1 . Utility 1 | . . 1 . Weapon . | . . . . Parts Attached 52 | 7 11 3 31 Power 5 | 1 1 . 3 Engine 3 | 1 1 . 1 Core 2 | . . . 2 Reactor . | . . . . Propulsion 10 | 2 3 1 4 Treads . | . . . . Leg . | . . . . Wheel 2 | 2 . . . Hover . | . . . . Flight 8 | . 3 1 4 Utility 20 | 2 3 2 13 Device 15 | 1 1 2 11 Storage 4 | 1 2 . 1 Processor 1 | . . . 1 Hackware . | . . . . Protection . | . . . . Artifact . | . . . . Weapon 17 | 2 4 . 11 Energy Gun 3 | 1 1 . 1 Energy Cannon 5 | . . . 5 Ballistic Gun 2 | 1 . . 1 Ballistic Cannon . | . . . . Launcher 5 | . 2 . 3 Special Weapon 2 | . 1 . 1 Impact Weapon . | . . . . Slashing Weapon . | . . . . Piercing Weapon . | . . . . Special Melee Weapon . | . . . . Unidentified Prototypes 4 | . 1 . 3 Corrupted Parts 1 | . . . 1 System Corruption 3 | . . . 3 Parts Lost 12 | . . 1 11 Power 2 | . . . 2 Propulsion 5 | . . . 5 Utility 4 | . . 1 3 Weapon 1 | . . . 1 Highest Loss Streak 5 | . . 1 5 To Critical Strikes . | . . . . Average Slot Usage (%) 85 | . 99 94 75 Engine 9 | . 14 11 6 Core 1 | . . . 1 Wheel 3 | . 11 . . Flight 21 | . 16 33 21 Device 15 | . 14 16 16 Storage 11 | . 14 11 11 Energy Gun 4 | . 11 11 . Energy Cannon 5 | . . . 9 Ballistic Gun 4 | . 9 . 3 Launcher 5 | . 6 11 4 Naked Turns . | . . . . Heaviest Build 34 | 12 12 14 34 Greatest Support 21 | 20 20 15 21 Greatest Overweight (x) 8 | . 2 . 8 Average Overweight (x) . | . . . . Largest Inventory Capacity 10 | 8 10 8 10 Average Capacity 8 | 7 8 8 9 Most Carried 10 | 4 9 8 10 Average Carried 6 | . 6 6 7 Final Capacity 10 | 8 8 8 10 Final Carried 8 | 1 8 7 7 Class Distribution -------------------- 100% | Mutant Dominant Class ---------------- Mutant | -10/Materials Mutant | -9/Materials Mutant | -9/Storage Resources | -11 -10 -9 -9 ----------- Run | Yrd Mat Mat Sto Matter Collected 580 | 287 98 29 166 Remotely . | . . . . Salvage Created 716 | 202 138 76 300 Parts 46 | 8 15 7 16 Haulers Intercepted . | . . . . Recyclers Shooed 1 | . . . 1 Parts Field Recycled . | . . . . Retrieved Matter . | . . . . Parts Self-Destructed . | . . . . Prevented . | . . . . Kills | -11 -10 -9 -9 ------- Run | Yrd Mat Mat Sto Combat Hostiles Destroyed 21 | . 5 5 11 Guns 7 | . 4 3 . Cannons 7 | . 1 . 6 AOE 7 | . . 2 5 Classes Destroyed 7 | 2 2 1 2 Tunneler 5 | 5 . . . Recycler 1 | 1 . . . Operator 1 | . . . 1 Drone 2 | . . . 2 Swarmer 9 | . 3 3 3 Grunt 9 | . 2 1 6 Sentry 3 | . . 1 2 Best Kill Streak 5 | 5 3 3 5 Combat Bots Only 5 | . 3 3 5 Max Kills in Single Turn 3 | 1 1 1 3 Gunslinging . | . . . . Exploded 2 | . . 1 2 Melee . | . . . . Uniques/NPCs Destroyed . | . . . . Combat | -11 -10 -9 -9 -------- Run | Yrd Mat Mat Sto Hostile Shots Fired 223 | . 41 28 154 Missed 70 | . 12 12 46 Damage Taken 2011 | . 262 226 1523 Core 477 | . 69 71 337 Absorbed by Shields . | . . . . Regen/Repaired (Parts) 35 | . 35 . . Core Remaining (%) 86 | 100 72 . . Volleys Fired 61 | 17 17 8 19 Largest 2 | 2 2 1 2 Hottest 136 | 70 70 65 136 Shots Fired 100 | 34 31 8 27 Gun 69 | 34 26 5 4 Cannon 15 | . . . 15 Launcher 11 | . . 3 8 Special 5 | . 5 . . Kinetic 34 | 17 14 . 3 Thermal 55 | 17 17 5 16 Explosive 9 | . . 3 6 Electromagnetic 2 | . . . 2 Robot Hit Streak 6 | 6 4 5 5 Robot Miss Streak 3 | 3 3 1 2 Penetration Max . | . . . . Secondary Targets 2 | . 2 . . Max Gunslinging Chain 1 | . 1 . . Shots Hit Robots 54 | 17 17 5 15 Core Hits 46 | 10 10 9 17 Critical Kills . | . . . . Critical Parts Destroyed . | . . . . Critical Strikes 1 | . 1 . . Sever 1 | . 1 . . Melee Attacks . | . . . . Impact . | . . . . Slashing . | . . . . Piercing . | . . . . Sneak Attacks . | . . . . Combat Hostiles . | . . . . Follow-up Attacks . | . . . . Damage Inflicted 1405 | 180 167 267 791 Guns 411 | 180 134 62 35 Cannons 227 | . . . 227 Explosions 734 | . . 205 529 Melee . | . . . . Ramming . | . . . . Kinetic 176 | 69 72 . 35 Thermal 495 | 111 95 62 227 Explosive 658 | . . 205 453 Electromagnetic 76 | . . . 76 Impact . | . . . . Slashing . | . . . . Piercing . | . . . . Highest Corruption 3 | . . . 3 Average Corruption 3 | . . . 3 Corruption Purged . | . . . . Corruption Blocked . | . . . . Effects 9 | . . . 9 Message Errors 2 | . . . 2 Matter Fused 2 | . . . 2 Heat Flow Errors 2 | . . . 2 Parts Fused 1 | . . . 1 Data Loss (minor) 2 | . . . 2 Overload Shots . | . . . . Overflow Damage 37 | . . . 37 Projectiles . | . . . . Explosions 37 | . . . 37 Melee . | . . . . Knockbacks . | . . . . Impact . | . . . . Kinetic . | . . . . Secondary . | . . . . Self-Inflicted Damage 195 | . . 39 156 Shots 7 | . . 1 6 Rammed . | . . . . Targets Rammed . | . . . . Kicked . | . . . . Crushed . | . . . . Highest Temperature 245 | 100 90 140 245 Average Temperature 50 | 32 44 61 63 Received Heat Transfer 720 | . 51 57 612 Siege Activations . | . . . . Robots Corrupted . | . . . . Combat Hostiles . | . . . . Parts Fried . | . . . . Impact Corruptions . | . . . . Robots Melted . | . . . . Combat Hostiles . | . . . . Parts Melted 3 | . . . 3 Heat Transferred 1184 | 333 296 148 407 Parts Sabotaged . | . . . . Parts Stolen . | . . . . Parts Stripped . | . . . . Power Chain Reactions . | . . . . Alert | -11 -10 -9 -9 ------- Run | Yrd Mat Mat Sto Peak Influence 551 | 30 218 444 551 Initial 187 | . 19 91 187 Average 256 | 13 112 262 367 Maximum Alert Level 2 | . 1 2 2 Low Security (%) 31 | 100 72 22 . Level 1 40 | . 27 50 52 Level 2 27 | . . 26 47 Level 3 . | . . . . Level 4 . | . . . . Level 5 . | . . . . High Security . | . . . . Max Security . | . . . . Squads Dispatched 4 | . 1 1 2 Investigation 1 | . . . 1 Extermination . | . . . . Reinforcement 3 | . 1 1 1 Assault . | . . . . Garrison . | . . . . Intercept . | . . . . Searches Triggered . | . . . . Construction Impeded . | . . . . Haulers Reinforced . | . . . . Active Scanning Responses . | . . . . Cargo Convoy Interrupts . | . . . . Stealth | -11 -10 -9 -9 --------- Run | Yrd Mat Mat Sto Distress Signals 5 | . . 1 4 Communications Jammed . | . . . . Distress Signals . | . . . . Times Spotted 55 | . 10 18 27 Peak Tracking Total 9 | . 5 8 9 Tactical Retreats 7 | . . 2 5 Traps | -11 -10 -9 -9 ------- Run | Yrd Mat Mat Sto Traps Triggered 4 | . . . 4 Indirectly . | . . . . Trap Hack Attempts . | . . . . Triggered . | . . . . Disarmed . | . . . . Reprogrammed . | . . . . Reused . | . . . . Traps Extracted . | . . . . Installed . | . . . . Triggered . | . . . . Machines | -11 -10 -9 -9 ---------- Run | Yrd Mat Mat Sto Machines Disabled 5 | . . 3 2 Max in Single Turn 2 | . . 2 1 Machines Repaired . | . . . . Machines Dismantled . | . . . . Machines Sabotaged . | . . . . Overloaded Fab Kills . | . . . . Hacking | -11 -10 -9 -9 --------- Run | Yrd Mat Mat Sto Machines Accessed 9 | . 4 1 4 Terminals 6 | . 2 1 3 Fabricators . | . . . . Repair Stations 1 | . 1 . . Recycling Units 2 | . 1 . 1 Scanalyzers . | . . . . Garrison Access . | . . . . Total Hacks 23 | . 11 2 10 Successful 14 | . 7 2 5 Failed 9 | . 4 . 5 Catastrophic 1 | . 1 . . Database Lockouts . | . . . . Manual . | . . . . Terminals 14 | . 5 2 7 Fabricators . | . . . . Repair Stations 5 | . 5 . . Recycling Units 4 | . 1 . 3 Scanalyzers . | . . . . Garrison Access . | . . . . Terminal Hacks 10 | . 4 2 4 Robot Analysis 1 | . . . 1 Prototype ID Bank 1 | . 1 . . Open Door 2 | . . . 2 Emergency Access Points 1 | . 1 . . Scanalyzer Index 1 | . . 1 . Locate Traps 3 | . 1 1 1 Hauler Manifests 1 | . 1 . . Fabricator Hacks . | . . . . Repair Station Hacks 2 | . 2 . . Scan Component 1 | . 1 . . Repair 1 | . 1 . . Recycling Unit Hacks 2 | . 1 . 1 Report Inventory 1 | . 1 . . Retrieve Components 1 | . . . 1 Scanalyzer . | . . . . Garrison Access Hacks . | . . . . Unauthorized Hacks . | . . . . Terminals . | . . . . Fabricators . | . . . . Repair Stations . | . . . . Recycling Units . | . . . . Scanalyzers . | . . . . Garrison Access . | . . . . Data Cores Recovered 1 | . . . 1 Used . | . . . . Hacking Detections 6 | . 3 1 2 Full Trace Events 2 | . 2 . . Feedback Events . | . . . . Feedback Blocked . | . . . . Robot Schematics Acquired . | . . . . Robots Built . | . . . . Authchips . | . . . . Time . | . . . . Total Robot Build Rating . | . . . . Part Schematics Acquired . | . . . . Parts Built . | . . . . Authchips . | . . . . Time . | . . . . Total Part Build Rating . | . . . . Parts Repaired 1 | . 1 . . Time 25 | . 25 . . Parts Recycled . | . . . . Recycled Matter . | . . . . Retrieved Matter . | . . . . Retrieved Components 10 | . . . 10 Parts Scanalyzed . | . . . . Part Schematics Acquired . | . . . . Parts Damaged . | . . . . Bothacking | -11 -10 -9 -9 ------------ Run | Yrd Mat Mat Sto Used RIF Installer . | . . . . Robots Hacked . | . . . . Non-combat . | . . . . Combat . | . . . . Robot Hacks Applied . | . . . . Relay Couplers Released . | . . . . Fabnet Peak Effective % . | . . . . Robots Rewired . | . . . . Allies Hacked . | . . . . Hacks Repelled . | . . . . Allies | -11 -10 -9 -9 -------- Run | Yrd Mat Mat Sto Total Allies . | . . . . Largest Group . | . . . . Highest-Rated Group . | . . . . Highest-Rated Ally . | . . . . Total Orders 4 | . . . 4 EXPLORE 4 | . . . 4 Ally Attacks . | . . . . Total Damage . | . . . . Kills . | . . . . Allies Corrupted . | . . . . Allies Melted . | . . . . Intel | -11 -10 -9 -9 ------- Run | Yrd Mat Mat Sto Robot Analysis Total 1 | . . . 1 Derelict Logs Recovered . | . . . . Drone Launches 27 | . . . 27 Drone Recoveries 13 | . . . 13 Exploration | -11 -10 -9 -9 ------------- Run | Yrd Mat Mat Sto Turns Passed 1408 | 117 379 175 737 Spaces Moved 1495 | 71 501 347 576 Core 17 | 6 . . 11 Treads . | . . . . Legs . | . . . . Wheels 204 | 65 139 . . Hover . | . . . . Flight 1274 | . 362 347 565 Fastest Speed 34 | 50 37 34 34 Average Speed 62 | 77 49 34 88 Slowest Speed 680 | 80 180 34 680 Overloaded Moves . | . . . . Propulsion Burnouts . | . . . . Robots Hopped . | . . . . Cave-ins Triggered . | . . . . Exploration Rate (%) 40 | 3 57 31 71 Regions Visited 3 Branch Regions 1 Pre-discovered Areas 1 | . . . 1 Known Exits Taken . | . . . . Unknown Exits Taken 3 | 1 1 1 . Scrap Searched . | . . . . Spaces Dug 7 | . . . 7 Terrain Destroyed 112 | . . 51 61 Melee . | . . . . Projectile . | . . . . AOE 112 | . . 51 61 Terrain Rammed . | . . . . Walls Destroyed . | . . . . Machines Disabled . | . . . . Actions | -11 -10 -9 -9 --------- Run | Yrd Mat Mat Sto Total 1878 | 102 599 395 782 Wait 161 | . 42 36 83 Move 1492 | 70 500 346 576 Hop . | . . . . Pick Up 46 | 8 17 1 20 Fast Attach 6 | . 2 . 4 Attach 31 | 7 2 3 19 Detach 5 | . . 1 4 Swap 15 | . 7 . 8 Drop 25 | . 12 . 13 Fire 61 | 17 17 8 19 Melee . | . . . . Ram . | . . . . Kick . | . . . . Crush . | . . . . Escape Stasis 36 | . . . 36 Rewire . | . . . . Trap . | . . . . Miscellaneous . | . . . . Route ------- -11/Scrapyard -10/Materials (discovered 3 exits: *Mat x2 / [*Min]) -9/Materials (discovered 2 exits: [*Min] / *Sto) -9/Storage (discovered 1 exit: [*Mat]) History --------- Turn | Location | Event 20 | -11/Scrapyard | Discovered new exit (range 15) 118 | -11/Scrapyard | Entered Materials 333 | -10/Materials | Build established: Mutant 419 | -10/Materials | Repaired Imp. Flight Unit 431 | -10/Materials | Discovered new exit (range 14) 431 | -10/Materials | Discovered new exit (range 14) 475 | -10/Materials | Discovered new exit (range 9) 497 | -10/Materials | Entered another Materials area 497 | -9/Materials | Evolved 2 slots: Propulsion x1, Utility x1 512 | -9/Materials | Discovered new exit (range 14) 629 | -9/Materials | Discovered new exit (range 5) 672 | -9/Materials | Entered Storage 883 | -9/Storage | Lost 3 parts (1p1n1u) 1005 | -9/Storage | Learned location of Armory (-3) 1011 | -9/Storage | Core integrity fell below 50% 1093 | -9/Storage | Core integrity fell below 20% 1126 | -9/Storage | Lost 12 allies 1138 | -9/Storage | Lost 5 parts (2n2u1w) 1196 | -9/Storage | Discovered new exit (range 10) 1409 | -9/Storage | Destroyed by Y-45 Defender with Beam Rifle Last Messages --------------- 01196_ EXIT=FOUND 01197_ U-05 Engineer lays Concrete. 01199_ U-05 Engineer builds a Wall. 01200_ Drone triggered Alarm Trap. 01200_ An alarm sounds. 01201_ U-05 Engineer builds a Wall. 01211_ Drone destroyed. 01213_ U-05 Engineer builds a Wall. 01218_ Drone retrieved by Drone Bay. 01223_ W-16 Scout sends out distress signal. 01230_ Drone destroyed. 01238_ K-01 Serf collects debris. 01248_ Drone retrieved by Drone Bay. 01253_ ZLSRA8G/JXPDFBUS:%WB 01271_ U-05 Engineer builds a Wall. 01287_ G-34 Mercenary destroyed. 01290_ Acquired 31 matter. 01297_ System corrupted: Heat flow error (+209). 01368_ System corrupted: Heat flow error (+267). 01391_ W-16 Scout sends out distress signal. Map ----- +----------------------------------------------------+ | ????# #????####+#### %% # #????? | | ????# ######## % # #??### | | ????# + #??# | | ????# ####+##### # #??# # | | ????########## # #?# ########### # | | ?????????????# # """ ## + | | ????????###??# # """ ### ######## # | | ????#######??# # """ #?# # ! # # | | ????# ## ##### # #?# + + + | | ?????# # #?# # # #### | | ?##### ########### ########?# # = # #??? | | ###### # #??????# #????????# # !# #?#? | | ## + ##????????# #????????# # #%#??? | | # # ##????????# #????????# ########%#??? | | ## ###!#????????##k##########+##+###???##/#### | | # *## #????????# ## #???# %[ | | # ##=#????????# ## #???# ! | | # ## ########## ## """"" #???# | | ## + ## "???" #???# | | ################# ## ""??" #???# | | ### ###?????????# ## "??"" #???# | | ??###???????????# ## " ??" #???# % | | ????????????????# k ## """"" #???# | | ?????????????#### ## #???# | | ?????#########T######/#########+############+# | | ?????# w @ % | | ?????# < | | ?????# Y | | ?????######+##+####"T"#########+##+######+#### | | ?????# #"""#??# # | | ?????# """ """ #####??# """"" # """ | | ?????# """ ""R" #?????? """"" # """ | | ?????# """ "" " #?????## """"" # """ | | ?????# ??????# # | | ??????##############?????##################### | | | | | | | | | | | | | | | | | | | | | | | | | | | | | | | +----------------------------------------------------+ Best States ------------- Heat Dissipation 28 Energy Generation 14 Energy Capacity 250 Matter Stores 300 Matter Capacity 300 Sight Range 16 Terrain Scan Range 14 Terrain Scan Density 10 Additional Mass Support 6 Evasion (%) 63 Item Schematics ----------------- None Robot Schematics ------------------ None Fabricated ------------ Nothing Alien Tech Used ----------------- None Achievements -------------- None Challenges ------------ None Game ------ Seed FortressHelicalSubcomponent Manual? 0 Play Time 00:36:38 Cumulative 12.3 hours Start 2024.04.01 @ 23:18:44 End 2024.04.02 @ 00:20:09 Sessions 1 Manual Loads 0 Difficulty Rogue Special Mode None Game No. 23 Rogue 23 Adventurer 0 Explorer 0 Win Type - Total 0 Types 0/0/0/0/0/0/0/0/0 Lore% 13 Gallery% 16 Achievement% 17 Wizard Run 0 Options --------- Layout 0 ASCII 0 Keyboard 0 Movement Mouse Keybinds 0 Fullscreen 1 Font 24/Smallcaps Map View 76x50 Zoom Use 0% Tactical HUD 1 Map Filters NONE Filters NONE Steam 1 RUN: 8e9a1d80-3ad0-493a-9e9f-dad94fbd69c0